[Event "*** Titled Tuesday Blitz"]
[Site "Chess.com"]
[Date "2020.04.14"]
[Round "6"]
[White "Mourinho_Jose"]
[Black "Angel_Hranitel_37"]
[Result "1-0"]
[WhiteElo "2615"]
[BlackElo "2363"]
[TimeControl "180+1"]
[EndTime "11:03:44 PDT"]
[Termination "Mourinho_Jose won by resignation"]

1. Nf3 {[%clk 0:03:00.9]} 1... Nf6 {[%clk 0:02:59.1]} 2. c4 {[%clk 0:03:01.3]}
2... g6 {[%clk 0:02:59.5]} 3. g3 {[%clk 0:03:01.9]} 3... Bg7 {[%clk 0:03:00.4]}
4. Bg2 {[%clk 0:03:02.8]} 4... d6 {[%clk 0:03:01.1]} 5. d4 {[%clk 0:03:03.7]}
5... O-O {[%clk 0:03:01.9]} 6. Nc3 {[%clk 0:03:04.4]} 6... Nc6 {[%clk
0:03:02.5]} 7. O-O {[%clk 0:03:04.6]} 7... Bf5 {[%clk 0:03:03]} 8. Bg5 {[%clk
0:02:54]} 8... Ne4 {[%clk 0:03:02.4]} 9. Nxe4 {[%clk 0:02:50.8]} 9... Bxe4
{[%clk 0:03:03.3]} 10. d5 {[%clk 0:02:51.2]} 10... Na5 {[%clk 0:02:58.7]} 11. b3
{[%clk 0:02:51.4]} 11... Bxa1 {[%clk 0:02:58.1]} 12. Qxa1 {[%clk 0:02:52]} 12...
f6 {[%clk 0:02:58.2]} 13. Bh6 {[%clk 0:02:51.2]} 13... Rf7 {[%clk 0:02:56.3]}
14. Bh3 {[%clk 0:02:50.5]} 14... Bxf3 {[%clk 0:02:55.4]} 15. exf3 {[%clk
0:02:50.1]} 15... f5 {[%clk 0:02:51.9]} 16. g4 {[%clk 0:02:46.2]} 16... b5
{[%clk 0:02:47.8]} 17. Qc3 {[%clk 0:02:23.2]} 17... c5 {[%clk 0:02:46.6]} 18.
gxf5 {[%clk 0:02:22]} 18... Rf6 {[%clk 0:02:27.5]} 19. Bg5 {[%clk 0:02:16.4]}
19... Rf7 {[%clk 0:02:10.1]} 20. fxg6 {[%clk 0:02:14]} 20... Rg7 {[%clk
0:02:06.4]} 21. Be6+ {[%clk 0:02:12.4]} 21... Kh8 {[%clk 0:02:06.4]} 22. Bh6
{[%clk 0:02:11.6]} 22... Qf8 {[%clk 0:02:06.9]} 23. Bxg7+ {[%clk 0:02:03.6]}
23... Qxg7 {[%clk 0:02:06.8]} 24. Qxa5 {[%clk 0:01:59.5]} 24... Qxg6+ {[%clk
0:02:07.3]} 25. Kh1 {[%clk 0:01:59.5]} 25... Rg8 {[%clk 0:02:07.5]} 26. Bh3
{[%clk 0:01:57.4]} 26... Qd3 {[%clk 0:01:49.3]} 27. Bg2 {[%clk 0:01:37.2]} 27...
h5 {[%clk 0:01:42.7]} 28. Qe1 {[%clk 0:01:31.6]} 28... h4 {[%clk 0:01:42.4]} 29.
Qe4 {[%clk 0:01:25.9]} 29... Qxe4 {[%clk 0:01:41.3]} 30. fxe4 {[%clk 0:01:25.7]}
30... bxc4 {[%clk 0:01:42.2]} 31. bxc4 {[%clk 0:01:24.1]} 31... Rb8 {[%clk
0:01:43.1]} 32. e5 {[%clk 0:01:07.4]} 32... Rb4 {[%clk 0:01:41.7]} 33. exd6
{[%clk 0:01:03.7]} 33... exd6 {[%clk 0:01:42.6]} 34. Re1 {[%clk 0:01:02.6]}
34... Rxc4 {[%clk 0:01:42.7]} 35. h3 {[%clk 0:00:44.6]} 35... Rc2 {[%clk
0:01:35.3]} 36. Re6 {[%clk 0:00:40.7]} 36... Rxa2 {[%clk 0:01:34]} 37. Rxd6
{[%clk 0:00:39.7]} 37... Rxf2 {[%clk 0:01:34.2]} 38. Rd8+ {[%clk 0:00:34.1]}
38... Kg7 {[%clk 0:01:33.4]} 39. d6 {[%clk 0:00:31.4]} 39... Rd2 {[%clk
0:01:25.7]} 40. Bc6 {[%clk 0:00:19.5]} 40... c4 {[%clk 0:01:23]} 41. d7 {[%clk
0:00:19.8]} 41... c3 {[%clk 0:01:23.4]} 42. Rc8 {[%clk 0:00:20.2]} 42... c2
{[%clk 0:01:23.6]} 43. Ba4 {[%clk 0:00:20.4]} 43... Kf6 {[%clk 0:00:46.5]} 44.
Rxc2 {[%clk 0:00:18.6]} 44... Rd3 {[%clk 0:00:46.9]} 45. Rc8 {[%clk 0:00:18]}
45... Rxh3+ {[%clk 0:00:45.6]} 46. Kg2 {[%clk 0:00:18.4]} 46... Rg3+ {[%clk
0:00:46.5]} 47. Kf2 {[%clk 0:00:18]} 47... Rd3 {[%clk 0:00:45.9]} 48. d8=Q+
{[%clk 0:00:18]} 48... Rxd8 {[%clk 0:00:46.8]} 49. Rxd8 {[%clk 0:00:18.3]} 1-0

[Event "*** Titled Tuesday Blitz"]
[Site "Chess.com"]
[Date "2020.04.14"]
[Round "6"]
[White "quesfr"]
[Black "Yeytruyol"]
[Result "0-1"]
[WhiteElo "2203"]
[BlackElo "2400"]
[TimeControl "180+1"]
[EndTime "11:03:44 PDT"]
[Termination "Yeytruyol won on time"]

1. e4 {[%clk 0:03:00.9]} 1... d6 {[%clk 0:02:58.4]} 2. d4 {[%clk 0:03:00.3]}
2... g6 {[%clk 0:02:57.7]} 3. Nc3 {[%clk 0:02:59.8]} 3... Bg7 {[%clk 0:02:55.9]}
4. f4 {[%clk 0:03:00.1]} 4... c5 {[%clk 0:02:48.5]} 5. dxc5 {[%clk 0:02:52.8]}
5... Qa5 {[%clk 0:02:48.2]} 6. cxd6 {[%clk 0:02:48.7]} 6... Bxc3+ {[%clk
0:02:44.4]} 7. bxc3 {[%clk 0:02:46.8]} 7... Nf6 {[%clk 0:02:38.8]} 8. Bd3 {[%clk
0:02:39.9]} 8... Bg4 {[%clk 0:02:21.6]} 9. Nf3 {[%clk 0:02:39.2]} 9... Bxf3
{[%clk 0:02:12.7]} 10. gxf3 {[%clk 0:02:40.1]} 10... exd6 {[%clk 0:02:08.7]} 11.
Bd2 {[%clk 0:02:34.2]} 11... Qc5 {[%clk 0:02:04.5]} 12. Qe2 {[%clk 0:02:30.9]}
12... Nbd7 {[%clk 0:02:01.5]} 13. Qe3 {[%clk 0:02:30.7]} 13... Qh5 {[%clk
0:01:44.3]} 14. O-O {[%clk 0:02:21.1]} 14... O-O {[%clk 0:01:40.7]} 15. Qd4
{[%clk 0:02:11.4]} 15... Rac8 {[%clk 0:01:37.1]} 16. Qxd6 {[%clk 0:02:10]} 16...
Rfd8 {[%clk 0:01:31.9]} 17. Rab1 {[%clk 0:02:00.3]} 17... Kg7 {[%clk 0:01:22.8]}
18. Qa3 {[%clk 0:01:36.6]} 18... Nc5 {[%clk 0:01:15.9]} 19. e5 {[%clk
0:01:16.9]} 19... Nd5 {[%clk 0:01:14.6]} 20. Qc1 {[%clk 0:01:06.9]} 20... Nb6
{[%clk 0:00:56.1]} 21. Be2 {[%clk 0:01:04.6]} 21... Ne4 {[%clk 0:00:48.3]} 22.
Be1 {[%clk 0:00:52.4]} 22... Nxc3 {[%clk 0:00:43.4]} 23. Bxc3 {[%clk 0:00:52.4]}
23... Rxc3 {[%clk 0:00:42.4]} 24. Rb3 {[%clk 0:00:51.6]} 24... Rdc8 {[%clk
0:00:36.4]} 25. Rxc3 {[%clk 0:00:49.8]} 25... Rxc3 {[%clk 0:00:37.3]} 26. Qb2
{[%clk 0:00:47.9]} 26... Nd5 {[%clk 0:00:32.9]} 27. Qxb7 {[%clk 0:00:44.9]}
27... Nxf4 {[%clk 0:00:30.3]} 28. Rf2 {[%clk 0:00:08.5]} 28... Qg5+ {[%clk
0:00:26.4]} 29. Kf1 {[%clk 0:00:08.8]} 29... Rxc2 {[%clk 0:00:26]} 30. Qb1
{[%clk 0:00:07.3]} 30... Rd2 {[%clk 0:00:21.3]} 31. Qc1 {[%clk 0:00:06.9]} 31...
Nh3 {[%clk 0:00:19.9]} 32. Rg2 {[%clk 0:00:04.8]} 32... Qe3 {[%clk 0:00:20.5]}
33. e6 {[%clk 0:00:03.9]} 33... Rxe2 {[%clk 0:00:20.6]} 34. Qxe3 {[%clk
0:00:03.4]} 34... Rxe3 {[%clk 0:00:20.6]} 35. exf7 {[%clk 0:00:03.4]} 35... Kxf7
{[%clk 0:00:17.6]} 36. Rg3 {[%clk 0:00:02.9]} 36... Nf4 {[%clk 0:00:18.1]} 37.
Kf2 {[%clk 0:00:03.4]} 37... g5 {[%clk 0:00:18.5]} 38. h4 {[%clk 0:00:02.9]}
38... Kf6 {[%clk 0:00:19.4]} 39. hxg5+ {[%clk 0:00:02.9]} 39... Kf5 {[%clk
0:00:20]} 40. Rg4 {[%clk 0:00:01.6]} 40... Nd5 {[%clk 0:00:20.9]} 0-1

[Event "*** Titled Tuesday Blitz"]
[Site "Chess.com"]
[Date "2020.04.14"]
[Round "6"]
[White "LastHeroJr"]
[Black "Rozum_Ivan"]
[Result "1-0"]
[WhiteElo "2552"]
[BlackElo "2725"]
[TimeControl "180+1"]
[EndTime "11:03:45 PDT"]
[Termination "LastHeroJr won by resignation"]

1. e4 {[%clk 0:03:00.9]} 1... c6 {[%clk 0:02:59.5]} 2. d4 {[%clk 0:03:00.1]}
2... d5 {[%clk 0:02:59.7]} 3. e5 {[%clk 0:03:00.2]} 3... Bf5 {[%clk 0:03:00]} 4.
Nf3 {[%clk 0:03:00.4]} 4... e6 {[%clk 0:03:00.6]} 5. Be2 {[%clk 0:03:00.8]} 5...
c5 {[%clk 0:03:01.1]} 6. O-O {[%clk 0:02:55.6]} 6... Nc6 {[%clk 0:03:00.8]} 7.
c3 {[%clk 0:02:47.6]} 7... cxd4 {[%clk 0:02:58.3]} 8. cxd4 {[%clk 0:02:47.3]}
8... Nge7 {[%clk 0:02:53.9]} 9. h3 {[%clk 0:02:38.9]} 9... Nc8 {[%clk
0:02:53.5]} 10. Nc3 {[%clk 0:02:37.9]} 10... Be7 {[%clk 0:02:53.5]} 11. Ne1
{[%clk 0:02:13.5]} 11... O-O {[%clk 0:02:48.3]} 12. Be3 {[%clk 0:02:01.4]} 12...
Nb6 {[%clk 0:02:46.2]} 13. g4 {[%clk 0:01:41.8]} 13... Bg6 {[%clk 0:02:46.3]}
14. f4 {[%clk 0:01:42]} 14... f5 {[%clk 0:02:45.7]} 15. exf6 {[%clk 0:01:40.9]}
15... Bxf6 {[%clk 0:02:45.3]} 16. Nf3 {[%clk 0:01:31.4]} 16... Nc4 {[%clk
0:02:45.2]} 17. Bxc4 {[%clk 0:01:31]} 17... dxc4 {[%clk 0:02:46.1]} 18. Ne5
{[%clk 0:00:45.7]} 18... Bxe5 {[%clk 0:02:33.8]} 19. dxe5 {[%clk 0:00:46.6]}
19... Bd3 {[%clk 0:02:28.7]} 20. Rf2 {[%clk 0:00:46.1]} 20... Qh4 {[%clk
0:02:14.8]} 21. Kg2 {[%clk 0:00:46.4]} 21... Rad8 {[%clk 0:02:10.5]} 22. Qe1
{[%clk 0:00:44.9]} 22... g5 {[%clk 0:02:03.2]} 23. fxg5 {[%clk 0:00:38.2]} 23...
Rxf2+ {[%clk 0:02:02.9]} 24. Qxf2 {[%clk 0:00:35.4]} 24... Qxf2+ {[%clk
0:02:03.2]} 25. Bxf2 {[%clk 0:00:34.9]} 25... Nxe5 {[%clk 0:02:04.1]} 26. Re1
{[%clk 0:00:23.5]} 26... Ng6 {[%clk 0:02:00.9]} 27. Bxa7 {[%clk 0:00:20]} 27...
e5 {[%clk 0:01:56.5]} 28. Bf2 {[%clk 0:00:16.2]} 28... Kf7 {[%clk 0:01:44.4]}
29. Kg3 {[%clk 0:00:16.4]} 29... Ke6 {[%clk 0:01:44.4]} 30. Bb6 {[%clk
0:00:15.8]} 30... Rf8 {[%clk 0:01:43.4]} 31. Be3 {[%clk 0:00:15]} 31... e4
{[%clk 0:01:40.2]} 32. Bd4 {[%clk 0:00:14.6]} 32... Rf3+ {[%clk 0:01:39.4]} 33.
Kg2 {[%clk 0:00:14.3]} 33... Nf4+ {[%clk 0:01:39.4]} 34. Kg1 {[%clk 0:00:12.4]}
34... Nxh3+ {[%clk 0:01:39.3]} 35. Kg2 {[%clk 0:00:12.8]} 35... Nf4+ {[%clk
0:01:39.2]} 36. Kg1 {[%clk 0:00:12.6]} 36... Rg3+ {[%clk 0:01:36.9]} 37. Kf2
{[%clk 0:00:12.9]} 37... Rg2+ {[%clk 0:01:31.8]} 38. Ke3 {[%clk 0:00:13.1]}
38... Nd5+ {[%clk 0:01:24.1]} 39. Nxd5 {[%clk 0:00:12.6]} 39... Kxd5 {[%clk
0:01:25]} 40. Bc3 {[%clk 0:00:10.5]} 40... Rxg4 {[%clk 0:01:24.3]} 41. Rh1
{[%clk 0:00:09.2]} 41... Rg3+ {[%clk 0:01:23.5]} 42. Kf2 {[%clk 0:00:08.7]}
42... Rf3+ {[%clk 0:01:20.2]} 43. Kg2 {[%clk 0:00:08.6]} 43... Rf7 {[%clk
0:01:19.7]} 44. Rh5 {[%clk 0:00:07.5]} 44... Ke6 {[%clk 0:01:12.5]} 45. Rh6+
{[%clk 0:00:06.7]} 45... Kd7 {[%clk 0:01:09]} 46. g6 {[%clk 0:00:06.2]} 46...
hxg6 {[%clk 0:01:07.6]} 47. Rxg6 {[%clk 0:00:07.1]} 47... e3 {[%clk 0:01:08]}
48. Rg4 {[%clk 0:00:06.2]} 48... e2 {[%clk 0:01:06.7]} 49. Rd4+ {[%clk 0:00:05]}
49... Kc6 {[%clk 0:01:06.6]} 50. Rd8 {[%clk 0:00:05.1]} 50... Be4+ {[%clk
0:00:59.7]} 51. Kg3 {[%clk 0:00:04.7]} 51... Rf2 {[%clk 0:00:59.7]} 52. Kxf2
{[%clk 0:00:03.4]} 1-0

[Event "*** Titled Tuesday Blitz"]
[Site "Chess.com"]
[Date "2020.04.14"]
[Round "6"]
[White "Luibov_AN"]
[Black "przemekpiotrowski"]
[Result "0-1"]
[WhiteElo "2182"]
[BlackElo "2399"]
[TimeControl "180+1"]
[EndTime "11:03:45 PDT"]
[Termination "przemekpiotrowski won by resignation"]

1. d4 {[%clk 0:03:00.9]} 1... c5 {[%clk 0:02:58.6]} 2. dxc5 {[%clk 0:03:00.3]}
2... e6 {[%clk 0:02:54.7]} 3. Nf3 {[%clk 0:03:00.2]} 3... Bxc5 {[%clk
0:02:54.5]} 4. c3 {[%clk 0:03:00.7]} 4... d5 {[%clk 0:02:54.2]} 5. Qc2 {[%clk
0:03:00.8]} 5... Nf6 {[%clk 0:02:54.4]} 6. e3 {[%clk 0:02:57.6]} 6... Nc6 {[%clk
0:02:54.4]} 7. Nbd2 {[%clk 0:02:57.8]} 7... O-O {[%clk 0:02:54.5]} 8. Bd3 {[%clk
0:02:57.8]} 8... Bd7 {[%clk 0:02:48.4]} 9. O-O {[%clk 0:02:57]} 9... Rc8 {[%clk
0:02:49.1]} 10. a3 {[%clk 0:02:54.5]} 10... e5 {[%clk 0:02:46.7]} 11. e4 {[%clk
0:02:54.5]} 11... d4 {[%clk 0:02:46.5]} 12. Nb3 {[%clk 0:02:44.4]} 12... b6
{[%clk 0:02:41.1]} 13. cxd4 {[%clk 0:02:29.6]} 13... Nxd4 {[%clk 0:02:32]} 14.
Nfxd4 {[%clk 0:02:27.9]} 14... Bxd4 {[%clk 0:02:30.5]} 15. Qd2 {[%clk
0:02:24.3]} 15... Ba4 {[%clk 0:02:27.6]} 16. Nxd4 {[%clk 0:01:59.8]} 16... Qxd4
{[%clk 0:02:28.5]} 17. Ba6 {[%clk 0:01:53.4]} 17... Qxd2 {[%clk 0:01:33.8]} 18.
Bxd2 {[%clk 0:01:53]} 18... Nxe4 {[%clk 0:01:34.4]} 19. Bb4 {[%clk 0:01:51.3]}
19... Rcd8 {[%clk 0:01:17.9]} 20. Bxf8 {[%clk 0:01:45.8]} 20... Kxf8 {[%clk
0:01:18.8]} 21. Rfe1 {[%clk 0:01:40.6]} 21... Nc5 {[%clk 0:01:18.6]} 22. Bc4
{[%clk 0:01:36.9]} 22... f6 {[%clk 0:01:17.8]} 23. b4 {[%clk 0:01:31.1]} 23...
Nb7 {[%clk 0:00:58.8]} 24. Rac1 {[%clk 0:01:26.6]} 24... Nd6 {[%clk 0:00:57.7]}
25. Bf1 {[%clk 0:01:19]} 25... Rd7 {[%clk 0:00:50.7]} 26. f3 {[%clk 0:01:16.7]}
26... Ke7 {[%clk 0:00:46.8]} 27. f4 {[%clk 0:01:11.9]} 27... e4 {[%clk
0:00:46.1]} 28. g4 {[%clk 0:01:09.1]} 28... h5 {[%clk 0:00:43.3]} 29. h3 {[%clk
0:01:08]} 29... g6 {[%clk 0:00:43.2]} 30. f5 {[%clk 0:00:56.6]} 30... gxf5
{[%clk 0:00:38.2]} 31. gxf5 {[%clk 0:00:56.6]} 31... Kf7 {[%clk 0:00:33.5]} 32.
Bg2 {[%clk 0:00:53.3]} 32... Re7 {[%clk 0:00:33]} 33. Re3 {[%clk 0:00:45.3]}
33... Bb5 {[%clk 0:00:27.7]} 34. Kf2 {[%clk 0:00:36.1]} 34... Bd3 {[%clk
0:00:27.5]} 35. Rc6 {[%clk 0:00:34.8]} 35... Nxf5 {[%clk 0:00:27.3]} 36. Re1
{[%clk 0:00:19.7]} 36... Bb5 {[%clk 0:00:27.5]} 37. Rc3 {[%clk 0:00:18.7]} 37...
e3+ {[%clk 0:00:27.1]} 38. Kg1 {[%clk 0:00:18.5]} 38... e2 {[%clk 0:00:26.8]}
39. Bd5+ {[%clk 0:00:18.4]} 39... Kg7 {[%clk 0:00:25]} 40. Bc4 {[%clk
0:00:18.7]} 40... Rc7 {[%clk 0:00:20.5]} 41. Bxb5 {[%clk 0:00:16.6]} 41... Rxc3
{[%clk 0:00:21.4]} 42. Rxe2 {[%clk 0:00:17]} 42... Rxh3 {[%clk 0:00:20.2]} 43.
Kf2 {[%clk 0:00:17.9]} 43... Rxa3 {[%clk 0:00:19]} 44. Re3 {[%clk 0:00:17.5]}
44... Rxe3 {[%clk 0:00:18.2]} 0-1

[Event "*** Titled Tuesday Blitz"]
[Site "Chess.com"]
[Date "2020.04.14"]
[Round "6"]
[White "FCChelsea14"]
[Black "ElHelvetico"]
[Result "1/2-1/2"]
[WhiteElo "2810"]
[BlackElo "2624"]
[TimeControl "180+1"]
[EndTime "11:03:47 PDT"]
[Termination "Game drawn by repetition"]

1. d4 {[%clk 0:03:00.9]} 1... f5 {[%clk 0:02:57]} 2. Nf3 {[%clk 0:03:00.2]} 2...
Nf6 {[%clk 0:02:56.3]} 3. g3 {[%clk 0:03:00.5]} 3... g6 {[%clk 0:02:56.6]} 4.
Bg2 {[%clk 0:03:00.8]} 4... Bg7 {[%clk 0:02:57.3]} 5. O-O {[%clk 0:03:01]} 5...
O-O {[%clk 0:02:58.1]} 6. b3 {[%clk 0:03:01.4]} 6... d6 {[%clk 0:02:56.8]} 7.
Bb2 {[%clk 0:03:01.6]} 7... Qe8 {[%clk 0:02:57.6]} 8. Nbd2 {[%clk 0:03:01.1]}
8... c6 {[%clk 0:02:57.3]} 9. Re1 {[%clk 0:02:59.9]} 9... Na6 {[%clk 0:02:52.7]}
10. c4 {[%clk 0:02:58.8]} 10... Rb8 {[%clk 0:02:39.6]} 11. e4 {[%clk 0:02:50.4]}
11... fxe4 {[%clk 0:02:39.6]} 12. Nxe4 {[%clk 0:02:50.5]} 12... Nxe4 {[%clk
0:02:40.1]} 13. Rxe4 {[%clk 0:02:50.6]} 13... Bf5 {[%clk 0:02:40.6]} 14. Re3
{[%clk 0:02:27.5]} 14... Qd7 {[%clk 0:02:28]} 15. a3 {[%clk 0:02:19.6]} 15... b5
{[%clk 0:02:27.5]} 16. Qe2 {[%clk 0:02:12]} 16... Bf6 {[%clk 0:02:07]} 17. cxb5
{[%clk 0:01:57.8]} 17... Rxb5 {[%clk 0:02:03.2]} 18. b4 {[%clk 0:01:50.7]} 18...
Nc7 {[%clk 0:02:00.3]} 19. Nd2 {[%clk 0:01:35.3]} 19... Nd5 {[%clk 0:01:56]} 20.
Bxd5+ {[%clk 0:01:34.6]} 20... Rxd5 {[%clk 0:01:55.7]} 21. Ne4 {[%clk
0:01:21.2]} 21... Bxd4 {[%clk 0:01:45.6]} 22. Bxd4 {[%clk 0:01:17.9]} 22... Rxd4
{[%clk 0:01:46.5]} 23. Rd1 {[%clk 0:01:06]} 23... Rxd1+ {[%clk 0:01:41]} 24.
Qxd1 {[%clk 0:01:05.9]} 24... Bxe4 {[%clk 0:01:21.1]} 25. Rxe4 {[%clk
0:01:05.9]} 25... Qf5 {[%clk 0:01:06.5]} 26. Rf4 {[%clk 0:01:04.4]} 26... Qd5
{[%clk 0:00:58.8]} 27. Rxf8+ {[%clk 0:00:48]} 27... Kxf8 {[%clk 0:00:59.7]} 28.
Qa4 {[%clk 0:00:48]} 28... c5 {[%clk 0:00:53.1]} 29. Qxa7 {[%clk 0:00:42.5]}
29... c4 {[%clk 0:00:50.5]} 30. Qe3 {[%clk 0:00:34.4]} 30... Qf5 {[%clk
0:00:32.9]} 31. Kf1 {[%clk 0:00:27.4]} 31... d5 {[%clk 0:00:28.9]} 32. Qf4
{[%clk 0:00:25.9]} 32... Ke8 {[%clk 0:00:27.6]} 33. Qxf5 {[%clk 0:00:21.2]}
33... gxf5 {[%clk 0:00:28.5]} 34. Ke2 {[%clk 0:00:21]} 34... e5 {[%clk
0:00:22.8]} 35. b5 {[%clk 0:00:16.5]} 35... Kd7 {[%clk 0:00:21.7]} 36. a4 {[%clk
0:00:15.8]} 36... Kc7 {[%clk 0:00:19.7]} 37. a5 {[%clk 0:00:16.1]} 37... d4
{[%clk 0:00:19.7]} 38. Kd2 {[%clk 0:00:15.2]} 38... e4 {[%clk 0:00:19.7]} 39. h3
{[%clk 0:00:15.4]} 39... h5 {[%clk 0:00:19.6]} 40. Kc2 {[%clk 0:00:15]} 40... c3
{[%clk 0:00:17]} 41. h4 {[%clk 0:00:14.8]} 41... Kb7 {[%clk 0:00:16.5]} 42. Kb3
{[%clk 0:00:15]} 42... Ka7 {[%clk 0:00:13.9]} 43. Kc2 {[%clk 0:00:14.9]} 43...
Kb7 {[%clk 0:00:14.2]} 44. Kb3 {[%clk 0:00:15.3]} 44... Kc7 {[%clk 0:00:13.9]}
45. Kc2 {[%clk 0:00:15.4]} 45... Kb7 {[%clk 0:00:13.1]} 1/2-1/2

[Event "*** Titled Tuesday Blitz"]
[Site "Chess.com"]
[Date "2020.04.14"]
[Round "6"]
[White "jacky72"]
[Black "SARGISMV"]
[Result "1-0"]
[WhiteElo "2697"]
[BlackElo "2483"]
[TimeControl "180+1"]
[EndTime "11:03:48 PDT"]
[Termination "jacky72 won by resignation"]

1. d4 {[%clk 0:03:00.9]} 1... c5 {[%clk 0:02:58.2]} 2. d5 {[%clk 0:03:00.5]}
2... e6 {[%clk 0:02:58.6]} 3. c4 {[%clk 0:03:00.6]} 3... exd5 {[%clk 0:02:58.8]}
4. cxd5 {[%clk 0:03:01.5]} 4... d6 {[%clk 0:02:59.4]} 5. Nc3 {[%clk 0:03:02.4]}
5... a6 {[%clk 0:03:00.1]} 6. a4 {[%clk 0:03:01.6]} 6... Ne7 {[%clk 0:03:00.7]}
7. h4 {[%clk 0:03:00.1]} 7... Nd7 {[%clk 0:02:52.4]} 8. Nf3 {[%clk 0:02:59.6]}
8... Ng6 {[%clk 0:02:51.9]} 9. h5 {[%clk 0:02:58]} 9... Nge5 {[%clk 0:02:52.1]}
10. Nxe5 {[%clk 0:02:58.2]} 10... Nxe5 {[%clk 0:02:51.8]} 11. h6 {[%clk
0:02:58.9]} 11... g6 {[%clk 0:02:45.5]} 12. Bf4 {[%clk 0:02:59]} 12... Be7
{[%clk 0:02:18.1]} 13. e3 {[%clk 0:02:52]} 13... f5 {[%clk 0:02:16]} 14. Be2
{[%clk 0:02:46.7]} 14... Bf6 {[%clk 0:02:15.2]} 15. Qc2 {[%clk 0:02:39.4]} 15...
O-O {[%clk 0:02:11.1]} 16. a5 {[%clk 0:02:39.2]} 16... Rb8 {[%clk 0:02:09.8]}
17. O-O {[%clk 0:02:39]} 17... Qe7 {[%clk 0:02:02]} 18. Na4 {[%clk 0:02:38.4]}
18... Bd7 {[%clk 0:02:00.3]} 19. Nb6 {[%clk 0:02:38.4]} 19... Bb5 {[%clk
0:02:00.4]} 20. Rfe1 {[%clk 0:02:30.2]} 20... Rf7 {[%clk 0:01:45.8]} 21. Bg3
{[%clk 0:02:27.7]} 21... Re8 {[%clk 0:01:33.2]} 22. e4 {[%clk 0:02:27.5]} 22...
Bh4 {[%clk 0:01:24.2]} 23. Bxb5 {[%clk 0:02:17.2]} 23... axb5 {[%clk 0:01:22.7]}
24. a6 {[%clk 0:01:26.6]} 24... bxa6 {[%clk 0:01:18.8]} 25. Rxa6 {[%clk
0:01:26.3]} 25... Bxg3 {[%clk 0:01:18.2]} 26. fxg3 {[%clk 0:01:27.2]} 26... Qg5
{[%clk 0:01:13.7]} 27. Ra3 {[%clk 0:01:16.1]} 27... Qxh6 {[%clk 0:01:07.3]} 28.
exf5 {[%clk 0:01:04.5]} 28... Rxf5 {[%clk 0:01:03]} 29. g4 {[%clk 0:01:04.9]}
29... Nf3+ {[%clk 0:00:38.2]} 30. Rxf3 {[%clk 0:00:51.4]} 30... Rxe1+ {[%clk
0:00:36.6]} 31. Kf2 {[%clk 0:00:52]} 31... Qh4+ {[%clk 0:00:30.3]} 32. g3 {[%clk
0:00:51.7]} 32... Qh2+ {[%clk 0:00:28.2]} 33. Kxe1 {[%clk 0:00:51]} 33... Qxc2
{[%clk 0:00:15.7]} 34. gxf5 {[%clk 0:00:51.9]} 34... Qb1+ {[%clk 0:00:15.4]} 35.
Kf2 {[%clk 0:00:50.6]} 35... Qxb2+ {[%clk 0:00:15.6]} 36. Kg1 {[%clk 0:00:51]}
36... Qc1+ {[%clk 0:00:14.4]} 37. Kg2 {[%clk 0:00:49.1]} 37... Qc2+ {[%clk
0:00:14.3]} 38. Kh3 {[%clk 0:00:48.1]} 38... gxf5 {[%clk 0:00:14.1]} 39. Nc8
{[%clk 0:00:48.5]} 39... Qe4 {[%clk 0:00:11.8]} 40. Rf4 {[%clk 0:00:48.2]} 40...
Qxd5 {[%clk 0:00:11.6]} 41. Ne7+ {[%clk 0:00:47.7]} 41... Kf7 {[%clk 0:00:12.2]}
42. Nxd5 {[%clk 0:00:48.6]} 42... Ke6 {[%clk 0:00:12.7]} 43. Nc7+ {[%clk
0:00:48]} 43... Ke5 {[%clk 0:00:13.6]} 44. Nxb5 {[%clk 0:00:48.5]} 44... d5
{[%clk 0:00:12.7]} 45. Kg2 {[%clk 0:00:45.6]} 45... d4 {[%clk 0:00:12.4]} 46.
Kf3 {[%clk 0:00:43.8]} 46... h6 {[%clk 0:00:11.9]} 47. Ke2 {[%clk 0:00:43.5]}
47... Kd5 {[%clk 0:00:12.3]} 48. Nxd4 {[%clk 0:00:41.8]} 48... cxd4 {[%clk
0:00:12.4]} 49. Kd3 {[%clk 0:00:42]} 49... Ke5 {[%clk 0:00:12.4]} 50. Rxd4
{[%clk 0:00:42.9]} 50... Kf6 {[%clk 0:00:12.3]} 51. Rh4 {[%clk 0:00:42.8]} 51...
Kg5 {[%clk 0:00:13.2]} 52. Ke3 {[%clk 0:00:43.1]} 52... h5 {[%clk 0:00:13.7]}
53. Kf3 {[%clk 0:00:42.5]} 53... Kg6 {[%clk 0:00:13.6]} 54. Kf4 {[%clk
0:00:43.4]} 54... Kf6 {[%clk 0:00:14.2]} 55. Rxh5 {[%clk 0:00:43.4]} 1-0